[Event "Championnat du monde jeunes U12F"]
[Date "2024.11.19"]
[White "Rzadkowska, Kaja"]
[Black "Pratitee Bordoloi"]
[WhiteElo "1798"]
[BlackElo "1929"]
[Round "5.6"]
[Result "1/2-1/2"]
[TimeControl "5400+30"]

1. e4 {[%clk 1:30:59]} 1... c6 {[%clk 1:30:47]} 2. d4 {[%clk 1:31:25]} 2... d5
{[%clk 1:31:09]} 3. Nd2 {[%clk 1:31:51]} 3... dxe4 {[%clk 1:31:25]} 4. Nxe4
{[%clk 1:32:14]} 4... Nf6 {[%clk 1:31:38]} 5. Nxf6+ {[%clk 1:32:40]} 5... exf6
{[%clk 1:31:54]} 6. c3 {[%clk 1:33:04]} 6... Bd6 {[%clk 1:32:14]} 7. Bd3 {[%clk
1:33:27]} 7... O-O {[%clk 1:32:34]} 8. Ne2 {[%clk 1:33:51]} 8... Re8 {[%clk
1:32:56]} 9. O-O {[%clk 1:34:12]} 9... Nd7 {[%clk 1:33:08]} 10. Ng3 {[%clk
1:34:34]} 10... Nf8 {[%clk 1:33:03]} 11. f4 {[%clk 1:34:55]} 11... c5 {[%clk
1:32:49]} 12. d5 {[%clk 1:35:17]} 12... Ng6 {[%clk 1:32:16]} 13. c4 {[%clk
1:31:45]} 13... Qc7 {[%clk 1:30:38]} 14. Qf3 {[%clk 1:21:15]} 14... Bd7 {[%clk
1:27:47]} 15. Bd2 {[%clk 1:17:32]} 15... b5 {[%clk 1:21:52]} 16. b3 {[%clk
1:14:30]} 16... bxc4 {[%clk 1:18:40]} 17. bxc4 {[%clk 1:13:48]} 17... Rab8
{[%clk 1:14:27]} 18. Nh5 {[%clk 1:05:12]} 18... Kh8 {[%clk 1:06:43]} 19. Bc3
{[%clk 1:01:33]} 19... Re7 {[%clk 0:52:51]} 20. Nxf6 {[%clk 0:41:52]} 20... gxf6
{[%clk 0:38:29]} 21. Bxf6+ {[%clk 0:41:23]} 21... Kg8 {[%clk 0:38:47]} 22. f5
{[%clk 0:37:52]} 22... Bxh2+ {[%clk 0:29:49]} 23. Kh1 {[%clk 0:37:11]} 23...
Bxf5 {[%clk 0:25:21]} 24. Bxe7 {[%clk 0:34:04]} 24... Nxe7 {[%clk 0:20:57]} 25.
Bxf5 {[%clk 0:34:14]} 25... Nxf5 {[%clk 0:19:36]} 26. Qxf5 {[%clk 0:34:34]}
26... Rb6 {[%clk 0:19:07]} 27. Rf3 {[%clk 0:26:57]} 27... Rg6 {[%clk 0:14:25]}
28. Rh3 {[%clk 0:25:07]} 28... Bg3 {[%clk 0:11:34]} 29. Rf1 {[%clk 0:24:17]}
29... Qe7 {[%clk 0:08:37]} 30. Qf3 {[%clk 0:19:44]} 30... Qc7 {[%clk 0:07:49]}
31. Qh5 {[%clk 0:16:06]} 31... h6 {[%clk 0:07:22]} 32. Qf3 {[%clk 0:15:39]}
32... Kg7 {[%clk 0:07:05]} 33. Rh5 {[%clk 0:15:18]} 33... Qe7 {[%clk 0:06:11]}
34. Kg1 {[%clk 0:14:14]} 34... Bd6 {[%clk 0:05:15]} 35. Qc3+ {[%clk 0:13:12]}
35... Kg8 {[%clk 0:04:25]} 36. Re1 {[%clk 0:12:26]} 36... Qd7 {[%clk 0:04:13]}
37. Qh3 {[%clk 0:12:07]} 37... Qxh3 {[%clk 0:04:03]} 38. Rxh3 {[%clk 0:12:26]}
38... Kg7 {[%clk 0:04:00]} 39. Ra3 {[%clk 0:12:35]} 39... a6 {[%clk 0:02:49]}
40. Re8 {[%clk 0:11:52]} 40... h5 {[%clk 0:01:21]} 41. Ra8 {[%clk 0:11:03]}
41... Rg4 {[%clk 0:00:50]} 42. R8xa6 {[%clk 0:08:10]} 42... Be5 {[%clk 0:00:47]}
43. R3a4 {[%clk 0:06:47]} 43... h4 {[%clk 0:00:59]} 44. Kf1 {[%clk 0:05:55]}
44... Re4 {[%clk 0:01:02]} 45. Kf2 {[%clk 0:05:05]} 45... Bg3+ {[%clk 0:00:41]}
46. Kf3 {[%clk 0:05:32]} 46... Re1 {[%clk 0:00:44]} 47. d6 {[%clk 0:03:49]}
47... Rd1 {[%clk 0:00:48]} 48. Ra3 {[%clk 0:03:18]} 48... Bxd6 {[%clk 0:00:56]}
49. Ke2 {[%clk 0:03:34]} 49... Rd4 {[%clk 0:01:12]} 50. Rd3 {[%clk 0:03:39]}
50... Re4+ {[%clk 0:01:23]} 51. Kf3 {[%clk 0:03:23]} 51... Rf4+ {[%clk 0:01:47]}
52. Ke3 {[%clk 0:03:49]} 52... Be5 {[%clk 0:01:51]} 53. Rd5 {[%clk 0:03:54]}
53... f6 {[%clk 0:01:58]} 54. Rxc5 {[%clk 0:02:43]} 54... Rg4 {[%clk 0:02:08]}
55. Kf3 {[%clk 0:01:22]} 55... Rg3+ {[%clk 0:02:31]} 56. Ke4 {[%clk 0:01:45]}
56... Rxg2 {[%clk 0:02:16]} 57. Rxe5 {[%clk 0:01:39]} 57... Re2+ {[%clk
0:02:20]} 58. Kf3 {[%clk 0:01:54]} 58... Rxe5 {[%clk 0:02:32]} 59. Rd6 {[%clk
0:01:37]} 59... Ra5 {[%clk 0:01:15]} 60. Rd2 {[%clk 0:00:49]} 60... f5 {[%clk
0:01:11]} 61. Rc2 {[%clk 0:00:46]} 1/2-1/2

[Variant "Standard"]
[Site "Europe Echecs"]

[Event "Championnat du monde jeunes U12F"]
[Date "2024.11.19"]
[White "Venskaya, Nika"]
[Black "Xia, Miaoyan"]
[WhiteElo "1871"]
[BlackElo "1711"]
[Round "5.7"]
[Result "1-0"]
[TimeControl "5400+30"]

1. d4 {[%clk 1:30:57]} 1... d5 {[%clk 1:30:52]} 2. Nf3 {[%clk 1:31:22]} 2... c5
{[%clk 1:31:14]} 3. g3 {[%clk 1:31:42]} 3... Nc6 {[%clk 1:31:23]} 4. Bg2 {[%clk
1:32:07]} 4... Nf6 {[%clk 1:31:35]} 5. O-O {[%clk 1:32:26]} 5... Bf5 {[%clk
1:31:03]} 6. c4 {[%clk 1:22:39]} 6... e6 {[%clk 1:26:36]} 7. cxd5 {[%clk
1:20:02]} 7... exd5 {[%clk 1:25:34]} 8. dxc5 {[%clk 1:15:37]} 8... Bxc5 {[%clk
1:25:29]} 9. a3 {[%clk 1:14:46]} 9... a5 {[%clk 1:23:41]} 10. Bg5 {[%clk
1:11:52]} 10... d4 {[%clk 1:20:09]} 11. Nh4 {[%clk 0:48:24]} 11... Bd7 {[%clk
1:17:07]} 12. Nd2 {[%clk 0:48:24]} 12... h6 {[%clk 1:10:12]} 13. Bxf6 {[%clk
0:48:32]} 13... Qxf6 {[%clk 1:10:25]} 14. Ne4 {[%clk 0:45:29]} 14... Qe7 {[%clk
1:08:01]} 15. b4 {[%clk 0:36:17]} 15... axb4 {[%clk 1:05:35]} 16. Nxc5 {[%clk
0:36:25]} 16... Qxc5 {[%clk 1:04:13]} 17. axb4 {[%clk 0:36:43]} 17... Rxa1
{[%clk 1:04:09]} 18. Qxa1 {[%clk 0:31:52]} 18... Qxb4 {[%clk 1:02:01]} 19. Bxc6
{[%clk 0:30:59]} 19... Ke7 {[%clk 0:58:06]} 20. Bxd7 {[%clk 0:31:05]} 20... Kxd7
{[%clk 0:58:20]} 21. Rd1 {[%clk 0:28:23]} 21... Kc7 {[%clk 0:54:50]} 22. Rxd4
{[%clk 0:28:08]} 22... Qb5 {[%clk 0:54:53]} 23. Qc1+ {[%clk 0:27:34]} 23... Kb6
{[%clk 0:54:16]} 24. Qe3 {[%clk 0:25:24]} 24... Ka6 {[%clk 0:53:49]} 25. Qa3+
{[%clk 0:25:21]} 25... Kb6 {[%clk 0:54:09]} 26. Rb4 {[%clk 0:25:47]} 26... Rc8
{[%clk 0:54:25]} 27. Rxb5+ {[%clk 0:26:10]} 27... Kxb5 {[%clk 0:54:49]} 28. Nf5
{[%clk 0:26:30]} 1-0

[Variant "Standard"]
[Site "Europe Echecs"]

[Event "Championnat du monde jeunes U12F"]
[Date "2024.11.19"]
[White "Tran Le Vy"]
[Black "Anu, Bayart-Uchral"]
[WhiteElo "1854"]
[BlackElo "1624"]
[Round "5.8"]
[Result "1/2-1/2"]
[TimeControl "5400+30"]

1. e4 {[%clk 1:30:48]} 1... c5 {[%clk 1:30:54]} 2. Nf3 {[%clk 1:31:04]} 2... a6
{[%clk 1:31:10]} 3. c3 {[%clk 1:28:28]} 3... d5 {[%clk 1:31:11]} 4. exd5 {[%clk
1:28:29]} 4... Qxd5 {[%clk 1:31:28]} 5. d4 {[%clk 1:28:30]} 5... Nf6 {[%clk
1:31:30]} 6. Na3 {[%clk 1:12:49]} 6... e6 {[%clk 1:31:36]} 7. Nc4 {[%clk
1:09:25]} 7... Nbd7 {[%clk 1:28:38]} 8. a4 {[%clk 1:08:03]} 8... b6 {[%clk
1:26:39]} 9. Be2 {[%clk 0:56:13]} 9... Bb7 {[%clk 1:26:07]} 10. O-O {[%clk
0:50:07]} 10... Be7 {[%clk 1:25:07]} 11. Ne3 {[%clk 0:47:31]} 11... Qd6 {[%clk
1:22:41]} 12. Nc4 {[%clk 0:45:39]} 12... Qc6 {[%clk 1:09:24]} 13. Nce5 {[%clk
0:43:44]} 13... Nxe5 {[%clk 1:07:58]} 14. dxe5 {[%clk 0:44:01]} 14... Nd7 {[%clk
1:07:27]} 15. Bf4 {[%clk 0:43:59]} 15... g5 {[%clk 1:02:57]} 16. Bg3 {[%clk
0:44:18]} 16... O-O-O {[%clk 0:59:34]} 17. Qc1 {[%clk 0:29:31]} 17... g4 {[%clk
0:57:44]} 18. Ne1 {[%clk 0:29:53]} 18... h5 {[%clk 0:58:08]} 19. f3 {[%clk
0:24:49]} 19... h4 {[%clk 0:57:02]} 20. Bf4 {[%clk 0:24:58]} 20... h3 {[%clk
0:56:53]} 21. g3 {[%clk 0:24:01]} 21... Rh5 {[%clk 0:43:49]} 22. Qe3 {[%clk
0:20:21]} 22... f6 {[%clk 0:30:09]} 23. Qe4 {[%clk 0:16:45]} 23... gxf3 {[%clk
0:28:12]} 24. Qxc6+ {[%clk 0:16:51]} 24... Bxc6 {[%clk 0:28:36]} 25. Bxa6+
{[%clk 0:17:13]} 25... Bb7 {[%clk 0:28:53]} 26. Bxb7+ {[%clk 0:17:35]} 26...
Kxb7 {[%clk 0:29:18]} 27. exf6 {[%clk 0:17:56]} 27... Nxf6 {[%clk 0:29:25]} 28.
Nxf3 {[%clk 0:18:09]} 28... c4 {[%clk 0:28:21]} 29. Rfe1 {[%clk 0:16:51]} 29...
Bc5+ {[%clk 0:21:24]} 30. Kf1 {[%clk 0:16:51]} 30... Rd3 {[%clk 0:21:16]} 31.
Ne5 {[%clk 0:17:02]} 31... Rxe5 {[%clk 0:15:33]} 32. Rxe5 {[%clk 0:16:20]} 32...
Ng4 {[%clk 0:15:56]} 33. Rxe6 {[%clk 0:13:19]} 33... Rf3+ {[%clk 0:16:12]} 34.
Ke1 {[%clk 0:10:21]} 34... Nxh2 {[%clk 0:14:46]} 35. Rd1 {[%clk 0:08:48]} 35...
Rf1+ {[%clk 0:14:51]} 36. Kd2 {[%clk 0:09:01]} 36... Rxd1+ {[%clk 0:13:45]} 37.
Kxd1 {[%clk 0:09:29]} 37... Ng4 {[%clk 0:13:53]} 38. Re1 {[%clk 0:07:01]} 38...
h2 {[%clk 0:14:01]} 39. Kc2 {[%clk 0:04:16]} 39... Nf2 {[%clk 0:13:12]} 40. g4
{[%clk 0:04:10]} 40... h1=Q 41. Rxh1 {[%clk 0:04:33]} 41... Nxh1 {[%clk
0:05:18]} 42. g5 {[%clk 0:04:54]} 42... Nf2 {[%clk 0:05:43]} 43. g6 {[%clk
0:03:28]} 43... Ng4 {[%clk 0:06:08]} 44. g7 {[%clk 0:03:29]} 44... Nf6 {[%clk
0:06:33]} 45. Be5 {[%clk 0:03:51]} 45... Ng8 {[%clk 0:06:55]} 46. b3 {[%clk
0:04:12]} 46... cxb3+ {[%clk 0:05:20]} 47. Kxb3 {[%clk 0:04:38]} 47... Kc6
{[%clk 0:05:24]} 48. Kc4 {[%clk 0:03:13]} 1/2-1/2

[Variant "Standard"]
[Site "Europe Echecs"]

[Event "Championnat du monde jeunes U12F"]
[Date "2024.11.19"]
[White "Bassari, Senem Gul"]
[Black "Xue, Tianhao"]
[WhiteElo "1778"]
[BlackElo "1835"]
[Round "5.9"]
[Result "0-1"]
[TimeControl "5400+30"]

1. e4 {[%clk 1:30:50]} 1... c5 {[%clk 1:30:57]} 2. Nf3 {[%clk 1:31:13]} 2... Nc6
{[%clk 1:31:22]} 3. d3 {[%clk 1:31:21]} 3... Nf6 {[%clk 1:31:46]} 4. g3 {[%clk
1:31:20]} 4... d5 {[%clk 1:32:11]} 5. Qe2 {[%clk 1:31:35]} 5... Bg4 {[%clk
1:32:32]} 6. Be3 {[%clk 0:56:21]} 6... dxe4 {[%clk 1:18:28]} 7. dxe4 {[%clk
0:56:22]} 7... Nxe4 {[%clk 1:17:14]} 8. Bg2 {[%clk 0:45:30]} 8... Qb6 {[%clk
1:01:38]} 9. c3 {[%clk 0:35:35]} 9... e6 {[%clk 0:49:06]} 10. O-O {[%clk
0:24:19]} 10... Nf6 {[%clk 0:47:37]} 11. h3 {[%clk 0:15:29]} 11... Bxf3 {[%clk
0:45:02]} 12. Bxf3 {[%clk 0:15:51]} 12... Be7 {[%clk 0:45:03]} 13. Na3 {[%clk
0:11:07]} 13... O-O {[%clk 0:39:22]} 14. Rab1 {[%clk 0:09:02]} 14... Qc7 {[%clk
0:30:20]} 15. Bf4 {[%clk 0:05:13]} 15... e5 {[%clk 0:27:59]} 16. Nb5 {[%clk
0:04:33]} 16... Qb8 {[%clk 0:27:23]} 17. Be3 {[%clk 0:03:30]} 17... Qc8 {[%clk
0:25:20]} 18. Bg2 {[%clk 0:02:09]} 18... a6 {[%clk 0:24:39]} 19. Na3 {[%clk
0:02:23]} 19... Qe6 {[%clk 0:20:33]} 20. Nc4 {[%clk 0:01:54]} 20... e4 {[%clk
0:17:38]} 21. Bg5 {[%clk 0:01:07]} 21... Rfe8 {[%clk 0:16:48]} 22. Rfe1 {[%clk
0:00:58]} 22... Bf8 {[%clk 0:08:28]} 23. Bxf6 {[%clk 0:00:56]} 23... Qxf6 {[%clk
0:08:47]} 24. Bxe4 {[%clk 0:00:45]} 24... Qh6 {[%clk 0:06:03]} 25. Qg4 {[%clk
0:00:38]} 25... Rad8 {[%clk 0:04:16]} 26. Rbd1 {[%clk 0:00:41]} 26... Rxd1
{[%clk 0:03:15]} 27. Rxd1 {[%clk 0:00:52]} 27... b5 {[%clk 0:03:10]} 28. Bxc6
{[%clk 0:00:40]} 28... Qxc6 {[%clk 0:03:36]} 29. Ne3 {[%clk 0:00:44]} 29... g6
{[%clk 0:03:11]} 30. h4 {[%clk 0:00:43]} 30... h5 {[%clk 0:02:56]} 31. Qf4
{[%clk 0:00:40]} 31... c4 {[%clk 0:02:07]} 32. Qg5 {[%clk 0:00:37]} 32... Bc5
{[%clk 0:00:59]} 33. Qf4 {[%clk 0:00:34]} 33... Bxe3 {[%clk 0:01:11]} 34. fxe3
{[%clk 0:00:53]} 34... Qc5 {[%clk 0:01:06]} 35. Rd4 {[%clk 0:00:49]} 35... a5
{[%clk 0:00:46]} 36. Kh2 {[%clk 0:00:49]} 36... Qe7 {[%clk 0:00:49]} 37. e4
{[%clk 0:00:51]} 37... a4 {[%clk 0:01:06]} 38. a3 {[%clk 0:01:06]} 38... Qe6
{[%clk 0:01:06]} 39. Qg5 {[%clk 0:00:52]} 39... Qc6 {[%clk 0:00:51]} 40. Qf4
{[%clk 0:00:38]} 40... Kg7 {[%clk 0:01:03]} 41. Kg1 {[%clk 0:00:34]} 41... Re6
{[%clk 0:01:23]} 42. e5 {[%clk 0:00:41]} 42... Qc5 {[%clk 0:01:33]} 43. Kh2
{[%clk 0:00:37]} 43... Rxe5 {[%clk 0:01:14]} 44. Rd2 {[%clk 0:00:35]} 44... Qe7
{[%clk 0:01:29]} 45. Qf2 {[%clk 0:00:36]} 45... Kh7 {[%clk 0:01:42]} 46. Kh3
{[%clk 0:00:34]} 46... Rf5 {[%clk 0:01:56]} 47. Qg2 {[%clk 0:00:37]} 47... Qe1
{[%clk 0:01:54]} 48. Re2 {[%clk 0:00:40]} 48... Qd1 {[%clk 0:02:14]} 49. Rd2
{[%clk 0:00:37]} 49... Qg4+ {[%clk 0:02:34]} 50. Kh2 {[%clk 0:01:04]} 50... Kg7
{[%clk 0:02:13]} 51. Rf2 {[%clk 0:00:34]} 51... Re5 {[%clk 0:02:28]} 52. Qf1
{[%clk 0:00:38]} 52... Qe6 {[%clk 0:02:41]} 53. Qg2 {[%clk 0:00:33]} 53... Re1
{[%clk 0:02:50]} 54. Qf3 {[%clk 0:00:35]} 54... Re5 {[%clk 0:02:55]} 55. Qd1
{[%clk 0:00:37]} 55... Kh7 {[%clk 0:02:52]} 56. Qf1 {[%clk 0:00:47]} 56... Kg8
{[%clk 0:03:15]} 57. Qd1 {[%clk 0:00:36]} 57... Rd5 {[%clk 0:02:50]} 58. Qf3
{[%clk 0:00:37]} 58... Rd3 {[%clk 0:02:27]} 59. Qg2 {[%clk 0:00:33]} 59... Kg7
{[%clk 0:02:31]} 60. Re2 {[%clk 0:00:45]} 60... Qd6 {[%clk 0:02:44]} 61. Rf2
{[%clk 0:00:32]} 61... Qe5 {[%clk 0:02:12]} 62. Re2 {[%clk 0:00:36]} 62... Qf5
{[%clk 0:02:00]} 63. Rf2 {[%clk 0:00:40]} 63... Qg4 {[%clk 0:02:07]} 64. Rf4
{[%clk 0:00:36]} 64... Qd7 {[%clk 0:01:23]} 65. Rf2 {[%clk 0:01:00]} 65... Qd6
{[%clk 0:01:02]} 66. Re2 {[%clk 0:00:44]} 66... Kh6 {[%clk 0:01:12]} 67. Rf2
{[%clk 0:00:41]} 67... f5 {[%clk 0:00:55]} 68. Rf4 {[%clk 0:00:34]} 68... Qe5
{[%clk 0:00:40]} 69. Rf2 {[%clk 0:00:34]} 69... Qd6 {[%clk 0:00:36]} 70. Rf4
{[%clk 0:00:54]} 70... Qe5 {[%clk 0:01:04]} 71. Rf2 {[%clk 0:01:14]} 71... Re3
{[%clk 0:01:23]} 72. Rf4 {[%clk 0:01:10]} 72... Re2 {[%clk 0:00:59]} 73. Rf2
{[%clk 0:01:35]} 73... Re4 {[%clk 0:01:22]} 74. Kg1 {[%clk 0:00:37]} 74... Rg4
{[%clk 0:01:35]} 75. Rf3 {[%clk 0:00:36]} 75... Qe1+ {[%clk 0:01:45]} 76. Kh2
{[%clk 0:00:39]} 76... f4 {[%clk 0:02:06]} 77. Rxf4 {[%clk 0:00:33]} 77... Rxf4
{[%clk 0:02:35]} 78. gxf4 {[%clk 0:01:01]} 78... Qxh4+ {[%clk 0:02:55]} 79. Kg1
{[%clk 0:01:21]} 79... Qg4 {[%clk 0:01:02]} 80. Qxg4 {[%clk 0:01:07]} 80... hxg4
{[%clk 0:01:31]} 81. Kg2 {[%clk 0:00:48]} 81... g5 {[%clk 0:00:41]} 82. f5
{[%clk 0:00:35]} 82... Kg7 {[%clk 0:01:03]} 83. Kg3 {[%clk 0:00:53]} 83... Kf7
{[%clk 0:01:28]} 84. Kxg4 {[%clk 0:00:44]} 84... Kf6 {[%clk 0:01:55]} 85. Kg3
{[%clk 0:01:01]} 85... Kxf5 {[%clk 0:02:22]} 86. Kf3 {[%clk 0:01:27]} 86... g4+
{[%clk 0:02:47]} 87. Kg3 {[%clk 0:01:55]} 87... Kg5 {[%clk 0:03:13]} 88. Kg2
{[%clk 0:02:21]} 88... Kf4 {[%clk 0:03:40]} 89. Kf2 {[%clk 0:02:47]} 89... Ke4
{[%clk 0:04:03]} 90. Kg3 {[%clk 0:03:14]} 90... Kd3 {[%clk 0:04:30]} 91. Kxg4
{[%clk 0:03:39]} 91... Kc2 {[%clk 0:04:57]} 92. Kf4 {[%clk 0:04:05]} 92... Kxb2
{[%clk 0:05:24]} 93. Ke4 {[%clk 0:04:31]} 93... Kxc3 {[%clk 0:05:51]} 94. Ke3
{[%clk 0:04:57]} 94... Kb3 {[%clk 0:06:18]} 95. Kd4 0-1

[Variant "Standard"]
[Site "Europe Echecs"]

[Event "Championnat du monde jeunes U12F"]
[Date "2024.11.19"]
[White "Tu, Audrey"]
[Black "Xu, Luna Yuexiu"]
[WhiteElo "1765"]
[BlackElo "1821"]
[Round "5.10"]
[Result "1-0"]
[TimeControl "5400+30"]

1. e4 {[%clk 1:30:58]} 1... c5 {[%clk 1:30:47]} 2. Nf3 {[%clk 1:31:15]} 2... d6
{[%clk 1:31:03]} 3. d4 {[%clk 1:31:24]} 3... cxd4 {[%clk 1:31:00]} 4. Nxd4
{[%clk 1:31:44]} 4... Nf6 {[%clk 1:31:12]} 5. Nc3 {[%clk 1:32:03]} 5... a6
{[%clk 1:31:20]} 6. Be2 {[%clk 1:32:18]} 6... e5 {[%clk 1:31:19]} 7. Nb3 {[%clk
1:32:10]} 7... Be7 {[%clk 1:31:05]} 8. O-O {[%clk 1:32:28]} 8... Be6 {[%clk
1:31:23]} 9. Bf3 {[%clk 1:29:29]} 9... O-O {[%clk 1:31:09]} 10. a4 {[%clk
1:28:06]} 10... b6 {[%clk 1:29:17]} 11. Be3 {[%clk 1:24:22]} 11... Nbd7 {[%clk
1:27:28]} 12. Qe2 {[%clk 1:17:14]} 12... Qc7 {[%clk 1:23:11]} 13. Rfd1 {[%clk
1:13:32]} 13... Rfd8 {[%clk 1:19:16]} 14. Nd2 {[%clk 1:02:35]} 14... Nc5 {[%clk
1:10:14]} 15. Nf1 {[%clk 0:57:30]} 15... Qc6 {[%clk 1:08:02]} 16. Bxc5 {[%clk
0:53:50]} 16... Qxc5 {[%clk 1:05:57]} 17. Ne3 {[%clk 0:53:03]} 17... h6 {[%clk
0:55:49]} 18. Ned5 {[%clk 0:51:38]} 18... Nxd5 {[%clk 0:54:44]} 19. Nxd5 {[%clk
0:49:09]} 19... Bxd5 {[%clk 0:53:38]} 20. Rxd5 {[%clk 0:48:43]} 20... Qc6 {[%clk
0:53:20]} 21. Ra3 {[%clk 0:43:33]} 21... Rac8 {[%clk 0:50:41]} 22. c3 {[%clk
0:35:47]} 22... Qc4 {[%clk 0:45:49]} 23. Qe3 {[%clk 0:34:35]} 23... Bg5 {[%clk
0:41:05]} 24. Qe1 {[%clk 0:31:34]} 24... b5 {[%clk 0:38:30]} 25. axb5 {[%clk
0:29:05]} 25... axb5 {[%clk 0:38:52]} 26. Qd1 {[%clk 0:28:27]} 26... Rc6 {[%clk
0:33:21]} 27. Rb3 {[%clk 0:26:48]} 27... Rb6 {[%clk 0:29:07]} 28. Rb4 {[%clk
0:25:29]} 28... Qc6 {[%clk 0:27:10]} 29. Qb3 {[%clk 0:23:15]} 29... Rdb8 {[%clk
0:26:52]} 30. Be2 {[%clk 0:22:48]} 30... Ra8 {[%clk 0:25:32]} 31. g3 {[%clk
0:21:25]} 31... Ra4 {[%clk 0:24:12]} 32. Rbxb5 {[%clk 0:18:29]} 32... Ra1+
{[%clk 0:22:45]} 33. Kg2 {[%clk 0:18:15]} 33... Rxb5 {[%clk 0:20:09]} 34. Qxb5
{[%clk 0:17:38]} 34... Qc7 {[%clk 0:19:27]} 35. Qe8+ {[%clk 0:16:14]} 35... Kh7
{[%clk 0:19:52]} 36. Qf8 {[%clk 0:15:10]} 36... Qb6 {[%clk 0:18:33]} 37. Qxf7
{[%clk 0:14:11]} 37... Qxb2 {[%clk 0:18:01]} 38. Qf5+ {[%clk 0:12:39]} 38... Kh8
{[%clk 0:16:19]} 39. Rb5 {[%clk 0:12:23]} 39... Qxb5 {[%clk 0:15:29]} 40. Bxb5
{[%clk 0:12:51]} 40... Ra8 {[%clk 0:15:37]} 41. h4 {[%clk 0:11:53]} 41... Bf6
{[%clk 0:15:57]} 42. c4 {[%clk 0:11:42]} 42... Be7 {[%clk 0:12:45]} 43. Qe6
{[%clk 0:11:00]} 43... Bf8 {[%clk 0:12:52]} 44. c5 {[%clk 0:10:43]} 44... dxc5
{[%clk 0:12:59]} 45. Bc4 {[%clk 0:10:47]} 45... Kh7 {[%clk 0:12:41]} 46. h5
{[%clk 0:10:25]} 46... Bd6 {[%clk 0:11:14]} 47. Qxd6 {[%clk 0:10:37]} 47... Kh8
{[%clk 0:11:13]} 48. Qxc5 {[%clk 0:10:45]} 48... Re8 {[%clk 0:11:07]} 49. Bf7
{[%clk 0:10:50]} 49... Rd8 {[%clk 0:11:15]} 50. Qxe5 {[%clk 0:11:04]} 50... Kh7
{[%clk 0:10:59]} 51. Qf5+ {[%clk 0:10:55]} 51... Kh8 {[%clk 0:11:21]} 52. e5
{[%clk 0:11:20]} 52... Rf8 {[%clk 0:10:41]} 53. e6 {[%clk 0:11:42]} 53... g6
{[%clk 0:10:56]} 54. Qf6+ {[%clk 0:11:54]} 54... Kh7 {[%clk 0:11:17]} 55. hxg6#
{[%clk 0:12:17]} 1-0

[Variant "Standard"]
[Site "Europe Echecs"]

[Event "Championnat du monde jeunes U12F"]
[Date "2024.11.19"]
[White "Aadya Ranganath"]
[Black "Pavithra R V"]
[WhiteElo "1753"]
[BlackElo "1854"]
[Round "5.11"]
[Result "0-1"]
[TimeControl "5400+30"]

1. e4 {[%clk 1:30:58]} 1... c5 {[%clk 1:30:53]} 2. Nf3 {[%clk 1:31:23]} 2... Nc6
{[%clk 1:31:19]} 3. d4 {[%clk 1:31:47]} 3... cxd4 {[%clk 1:31:44]} 4. Nxd4
{[%clk 1:32:13]} 4... Nf6 {[%clk 1:32:09]} 5. Nc3 {[%clk 1:32:34]} 5... e5
{[%clk 1:32:27]} 6. Ndb5 {[%clk 1:32:56]} 6... d6 {[%clk 1:32:49]} 7. Nd5 {[%clk
1:33:20]} 7... Nxd5 {[%clk 1:33:04]} 8. exd5 {[%clk 1:33:44]} 8... Nb8 {[%clk
1:33:20]} 9. a4 {[%clk 1:33:07]} 9... a6 {[%clk 1:32:00]} 10. Na3 {[%clk
1:30:53]} 10... Qc7 {[%clk 1:28:03]} 11. Nc4 {[%clk 1:27:25]} 11... Nd7 {[%clk
1:24:44]} 12. Be3 {[%clk 1:24:41]} 12... b6 {[%clk 1:18:50]} 13. a5 {[%clk
1:16:39]} 13... b5 {[%clk 1:13:03]} 14. Nb6 {[%clk 1:14:54]} 14... Rb8 {[%clk
1:11:54]} 15. Nxd7 {[%clk 1:10:58]} 15... Bxd7 {[%clk 1:08:06]} 16. Bb6 {[%clk
1:09:48]} 16... Qb7 {[%clk 1:08:22]} 17. c4 {[%clk 1:06:26]} 17... bxc4 {[%clk
1:06:39]} 18. Bxc4 {[%clk 1:06:16]} 18... Be7 {[%clk 1:06:37]} 19. Qd3 {[%clk
1:04:03]} 19... Ra8 {[%clk 1:06:41]} 20. O-O {[%clk 1:02:07]} 20... f5 {[%clk
1:04:47]} 21. f4 {[%clk 0:56:31]} 21... e4 {[%clk 1:03:54]} 22. Qe3 {[%clk
0:54:23]} 22... Bf6 {[%clk 1:01:14]} 23. Rab1 {[%clk 0:50:17]} 23... h6 {[%clk
0:59:14]} 24. Qe2 {[%clk 0:48:44]} 24... g5 {[%clk 0:58:26]} 25. b4 {[%clk
0:43:45]} 25... Ke7 {[%clk 0:57:00]} 26. b5 {[%clk 0:40:23]} 26... axb5 {[%clk
0:49:08]} 27. Bxb5 {[%clk 0:40:43]} 27... gxf4 {[%clk 0:40:55]} 28. Bxd7 {[%clk
0:35:30]} 28... Qxd7 {[%clk 0:37:11]} 29. Rbc1 {[%clk 0:32:38]} 29... Rac8
{[%clk 0:35:16]} 30. a6 {[%clk 0:29:39]} 30... Rhg8 {[%clk 0:33:18]} 31. Kh1
{[%clk 0:27:22]} 31... Rxc1 {[%clk 0:32:10]} 32. Rxc1 {[%clk 0:27:47]} 32... Rc8
{[%clk 0:32:36]} 33. Rc4 {[%clk 0:24:04]} 33... Rb8 {[%clk 0:26:44]} 34. Rc6
{[%clk 0:20:56]} 34... Bd4 {[%clk 0:22:58]} 35. Bxd4 {[%clk 0:15:54]} 35... Rb1+
{[%clk 0:23:19]} 36. Bg1 {[%clk 0:16:20]} 36... Qa7 {[%clk 0:23:46]} 37. Rc7+
{[%clk 0:16:19]} 37... Qxc7 {[%clk 0:24:11]} 38. g3 {[%clk 0:14:30]} 38... Qa7
{[%clk 0:24:05]} 39. Kg2 {[%clk 0:13:08]} 39... f3+ {[%clk 0:24:25]} 40. Kh3
{[%clk 0:13:26]} 40... fxe2 {[%clk 0:24:44]} 41. Bxa7 {[%clk 0:13:50]} 41...
e1=Q {[%clk 0:25:07]} 42. Bb6 {[%clk 0:13:48]} 42... Qf1+ {[%clk 0:25:12]} 43.
Kh4 {[%clk 0:14:14]} 43... Qf3 {[%clk 0:25:33]} 44. Bd8+ {[%clk 0:14:33]} 44...
Kxd8 {[%clk 0:25:57]} 45. Kh3 {[%clk 0:14:58]} 45... Rb2 {[%clk 0:26:23]} 46. a7
{[%clk 0:15:20]} 46... Qg4# {[%clk 0:26:49]} 0-1

[Variant "Standard"]
[Site "Europe Echecs"]